Cogmind - Beta 13 @@@ ROGUE MODE // 2024.03.24 @ 21:49:29 Player: f_ Result: Destroyed by G-34 Mercenary with Small Laser Performance ------------- Evolutions (0) 0 Regions Visited (2) 400 Robots Destroyed (25) 125 Value Destroyed (546) 546 Prototype IDs (3) 60 Alien Tech Used (0) 0 Bonus (0) 0 TOTAL SCORE: 1131 Bonus ------- None Cogmind --------- Core Integrity 0/250 Matter 300/300 Energy 250/250 System Corruption 0% Temperature Warm (116) Movement Rolling (105) Ox1 Location -10/Mines Parts ------- > --- POWER (1) -------- Ion Engine > --- PROPULSION (2) --- Wheel Compact Wheel > --- UTILITY (2) ------ Large Storage Unit Core Shielding > --- WEAPON (2) ------- Particle Gun Katana > --- INVENTORY (15) --- Cryofiber Web Heat Sink Cargo Storage Unit Trap Scanner Actuator Array Actuator Array Core Shielding Light Armor Plating Small Laser Beamcaster Flak Cannon Peak State ------------ > --- POWER ------------ Ion Engine > --- PROPULSION ------- Wheel Compact Wheel > --- UTILITY ---------- Medium Storage Unit Core Shielding > --- WEAPON ----------- Particle Gun Katana > --- INVENTORY -------- Wheel Cryofiber Web Heat Sink Trap Scanner Actuator Array Actuator Array Core Shielding Light Armor Plating Small Laser Flak Cannon [Rating: 12] Favorites ----------- Power Ion Engine Engine Ion Engine Power Core Light Nuclear Core Propulsion Wheel Wheel Wheel Utility Core Shielding Device Sensor Array Storage Medium Storage Unit Protection Core Shielding Weapon Small Laser Energy Gun Small Laser Slashing Weapon Katana Build | -11 -10 -10 ------- Run | Yrd Mat Min Slots Evolved . | . . . Power . | . . . Propulsion . | . . . Utility . | . . . Weapon . | . . . Parts Attached 21 | 6 7 8 Power 3 | 1 1 1 Engine 2 | 1 . 1 Core 1 | . 1 . Reactor . | . . . Propulsion 6 | 2 2 2 Treads . | . . . Leg . | . . . Wheel 6 | 2 2 2 Hover . | . . . Flight . | . . . Utility 5 | 1 3 1 Device 1 | . 1 . Storage 3 | 1 1 1 Processor . | . . . Hackware . | . . . Protection 1 | . 1 . Artifact . | . . . Weapon 7 | 2 1 4 Energy Gun 6 | 2 1 3 Energy Cannon . | . . . Ballistic Gun . | . . . Ballistic Cannon . | . . . Launcher . | . . . Special Weapon . | . . . Impact Weapon . | . . . Slashing Weapon 1 | . . 1 Piercing Weapon . | . . . Special Melee Weapon . | . . . Unidentified Prototypes . | . . . Parts Lost 5 | . 3 2 Power . | . . . Propulsion 1 | . . 1 Utility 1 | . 1 . Weapon 3 | . 2 1 Highest Loss Streak 3 | . 3 1 To Critical Strikes . | . . . Average Slot Usage (%) 94 | . 93 96 Engine 11 | . 11 11 Core 2 | . 2 2 Wheel 26 | . 28 25 Device 4 | . 8 . Storage 14 | . 14 14 Protection 8 | . 3 14 Energy Gun 19 | . 23 15 Slashing Weapon 5 | . . 11 Naked Turns . | . . . Heaviest Build 31 | 13 19 31 Greatest Support 26 | 26 26 26 Greatest Overweight (x) 1 | . . 1 Average Overweight (x) . | . . . Largest Inventory Capacity 15 | 8 10 15 Average Capacity 10 | 6 9 11 Most Carried 13 | 4 6 13 Average Carried 6 | 1 3 9 Final Capacity 15 | 8 10 15 Final Carried 12 | 1 5 12 Class Distribution -------------------- 77% | Mutant 22% | Scavenger-Mutant Dominant Class ---------------- Mutant | -10/Materials Mutant | -10/Mines Resources | -11 -10 -10 ----------- Run | Yrd Mat Min Matter Collected 405 | 93 232 80 Remotely . | . . . Salvage Created 867 | . 456 411 Parts 53 | . 29 24 Haulers Intercepted 1 | . 1 . Recyclers Shooed . | . . . Parts Field Recycled . | . . . Retrieved Matter . | . . . Parts Self-Destructed . | . . . Prevented . | . . . Kills | -11 -10 -10 ------- Run | Yrd Mat Min Combat Hostiles Destroyed 17 | . 8 9 Melee 5 | . . 5 Guns 12 | . 8 4 Classes Destroyed 7 | . 7 . Worker 3 | . 3 . Hauler 1 | . 1 . Recycler 2 | . 1 1 Operator 1 | . 1 . Watcher 1 | . 1 . Swarmer 5 | . 3 2 Grunt 12 | . 5 7 Best Kill Streak 5 | . 5 5 Combat Bots Only 5 | . 3 5 Max Kills in Single Turn 2 | . 2 1 Gunslinging . | . . . Exploded . | . . . Melee 1 | . . 1 Uniques/NPCs Destroyed . | . . . Combat | -11 -10 -10 -------- Run | Yrd Mat Min Hostile Shots Fired 86 | . 42 44 Missed 14 | . 6 8 Damage Taken 848 | . 409 439 Core 256 | . 101 155 Absorbed by Shields . | . . . Redirected to Shielding 34 | . . 34 Core Remaining (%) 100 | 100 . . Volleys Fired 75 | . 47 28 Largest 2 | . 2 1 Hottest 90 | . 90 65 Shots Fired 107 | . 79 28 Gun 107 | . 79 28 Cannon . | . . . Launcher . | . . . Special . | . . . Kinetic . | . . . Thermal 107 | . 79 28 Explosive . | . . . Electromagnetic . | . . . Robot Hit Streak 9 | . 9 5 Robot Miss Streak 6 | . 6 2 Penetration Max . | . . . Secondary Targets . | . . . Shots Hit Robots 79 | . 50 29 Core Hits 38 | . 24 14 Critical Kills . | . . . Critical Parts Destroyed . | . . . Critical Strikes 6 | . 4 2 Burn 6 | . 4 2 Melee Attacks 13 | . . 13 Impact . | . . . Slashing 13 | . . 13 Piercing . | . . . Sneak Attacks 2 | . . 2 Combat Hostiles . | . . . Follow-up Attacks . | . . . Damage Inflicted 1213 | . 586 627 Guns 832 | . 586 246 Cannons . | . . . Explosions . | . . . Melee 381 | . . 381 Ramming . | . . . Kinetic . | . . . Thermal 832 | . 586 246 Explosive . | . . . Electromagnetic . | . . . Impact . | . . . Slashing 381 | . . 381 Piercing . | . . . Highest Corruption . | . . . Average Corruption . | . . . Corruption Purged . | . . . Corruption Blocked . | . . . Overload Shots . | . . . Overflow Damage 25 | . . 25 Projectiles . | . . . Explosions . | . . . Melee 25 | . . 25 Knockbacks . | . . . Impact . | . . . Kinetic . | . . . Secondary . | . . . Self-Inflicted Damage . | . . . Shots . | . . . Rammed . | . . . Targets Rammed . | . . . Kicked . | . . . Crushed . | . . . Highest Temperature 308 | . 308 152 Average Temperature 88 | . 103 52 Received Heat Transfer 426 | . 186 240 Effects 4 | . 4 . Energy Bleed 2 | . 2 . Interference 2 | . 2 . Siege Activations . | . . . Robots Corrupted . | . . . Combat Hostiles . | . . . Parts Fried . | . . . Impact Corruptions . | . . . Robots Melted . | . . . Combat Hostiles . | . . . Parts Melted 9 | . 7 2 Heat Transferred 2601 | . 1858 743 Parts Sabotaged . | . . . Parts Stolen . | . . . Parts Stripped . | . . . Power Chain Reactions . | . . . Alert | -11 -10 -10 ------- Run | Yrd Mat Min Peak Influence 258 | . 258 237 Initial 22 | . . 22 Average 124 | . 132 128 Maximum Alert Level 1 | . 1 1 Low Security (%) 77 | 100 64 88 Level 1 22 | . 35 11 Level 2 . | . . . Level 3 . | . . . Level 4 . | . . . Level 5 . | . . . High Security . | . . . Max Security . | . . . Squads Dispatched 2 | . 1 1 Investigation 1 | . . 1 Extermination . | . . . Reinforcement 1 | . 1 . Assault . | . . . Garrison . | . . . Intercept . | . . . Searches Triggered . | . . . Construction Impeded . | . . . Haulers Reinforced . | . . . Active Scanning Responses . | . . . Cargo Convoy Interrupts . | . . . Stealth | -11 -10 -10 --------- Run | Yrd Mat Min Distress Signals 2 | . 1 1 Communications Jammed . | . . . Distress Signals . | . . . Times Spotted 25 | . 13 12 Peak Tracking Total 4 | . 4 3 Tactical Retreats 2 | . 1 1 Traps | -11 -10 -10 ------- Run | Yrd Mat Min Traps Triggered . | . . . Indirectly . | . . . Trap Hack Attempts . | . . . Triggered . | . . . Disarmed . | . . . Reprogrammed . | . . . Reused . | . . . Traps Extracted . | . . . Installed . | . . . Triggered . | . . . Machines | -11 -10 -10 ---------- Run | Yrd Mat Min Machines Disabled . | . . . Max in Single Turn . | . . . Machines Repaired . | . . . Machines Dismantled . | . . . Machines Sabotaged . | . . . Overloaded Fab Kills . | . . . Hacking | -11 -10 -10 --------- Run | Yrd Mat Min Machines Accessed 3 | . 2 1 Terminals 2 | . 2 . Fabricators . | . . . Repair Stations . | . . . Recycling Units . | . . . Scanalyzers . | . . . Garrison Access . | . . . Total Hacks 4 | . 3 1 Successful 3 | . 2 1 Failed 1 | . 1 . Catastrophic . | . . . Database Lockouts . | . . . Manual . | . . . Terminals 3 | . 3 . Fabricators . | . . . Repair Stations . | . . . Recycling Units . | . . . Scanalyzers . | . . . Garrison Access . | . . . Terminal Hacks 3 | . 2 1 Prototype ID Bank 1 | . 1 . Open Door 1 | . . 1 Alert Level 1 | . 1 . Fabricator Hacks . | . . . Repair Station Hacks . | . . . Recycling Unit Hacks . | . . . Scanalyzer . | . . . Garrison Access Hacks . | . . . Unauthorized Hacks . | . . . Terminals . | . . . Fabricators . | . . . Repair Stations . | . . . Recycling Units . | . . . Scanalyzers . | . . . Garrison Access . | . . . Data Cores Recovered . | . . . Used . | . . . Hacking Detections . | . . . Full Trace Events . | . . . Feedback Events . | . . . Feedback Blocked . | . . . Robot Schematics Acquired . | . . . Robots Built . | . . . Authchips . | . . . Time . | . . . Total Robot Build Rating . | . . . Part Schematics Acquired . | . . . Parts Built . | . . . Authchips . | . . . Time . | . . . Total Part Build Rating . | . . . Parts Repaired . | . . . Time . | . . . Parts Recycled . | . . . Recycled Matter . | . . . Retrieved Matter . | . . . Retrieved Components . | . . . Parts Scanalyzed . | . . . Part Schematics Acquired . | . . . Parts Damaged . | . . . Bothacking | -11 -10 -10 ------------ Run | Yrd Mat Min Used RIF Installer . | . . . Robots Hacked . | . . . Non-combat . | . . . Combat . | . . . Robot Hacks Applied . | . . . Relay Couplers Released . | . . . Fabnet Peak Effective % . | . . . Robots Rewired . | . . . Allies Hacked . | . . . Hacks Repelled . | . . . Allies | -11 -10 -10 -------- Run | Yrd Mat Min Total Allies . | . . . Largest Group . | . . . Highest-Rated Group . | . . . Highest-Rated Ally . | . . . Total Orders . | . . . Ally Attacks . | . . . Total Damage . | . . . Kills . | . . . Allies Corrupted . | . . . Allies Melted . | . . . Intel | -11 -10 -10 ------- Run | Yrd Mat Min Robot Analysis Total . | . . . Derelict Logs Recovered . | . . . Drone Launches . | . . . Drone Recoveries . | . . . Exploration | -11 -10 -10 ------------- Run | Yrd Mat Min Turns Passed 924 | 43 427 454 Spaces Moved 649 | 36 273 340 Core 4 | 4 . . Treads . | . . . Legs . | . . . Wheels 645 | 32 273 340 Hover . | . . . Flight . | . . . Fastest Speed 50 | 50 90 90 Average Speed 92 | 85 90 95 Slowest Speed 105 | 90 90 105 Overloaded Moves . | . . . Propulsion Burnouts . | . . . Robots Hopped . | . . . Cave-ins Triggered . | . . . Exploration Rate (%) 34 | 3 37 62 Regions Visited 2 Branch Regions 1 Pre-discovered Areas . | . . . Known Exits Taken . | . . . Unknown Exits Taken 2 | 1 1 . Scrap Searched . | . . . Spaces Dug . | . . . Terrain Destroyed . | . . . Melee . | . . . Projectile . | . . . AOE . | . . . Terrain Rammed . | . . . Walls Destroyed . | . . . Machines Disabled . | . . . Actions | -11 -10 -10 --------- Run | Yrd Mat Min Total 844 | 48 374 422 Wait 53 | . 35 18 Move 647 | 35 272 340 Hop . | . . . Pick Up 27 | 7 10 10 Fast Attach 1 | . . 1 Attach 12 | 6 3 3 Detach 1 | . . 1 Swap 8 | . 4 4 Drop 7 | . 3 4 Fire 75 | . 47 28 Melee 13 | . . 13 Ram . | . . . Kick . | . . . Crush . | . . . Escape Stasis . | . . . Rewire . | . . . Trap . | . . . Miscellaneous . | . . . Route ------- -11/Scrapyard -10/Materials (discovered 2 exits: [*Mat] / *Min) -10/Mines (discovered 2 exits: [*Mat x2]) History --------- Turn | Location | Event 10 | -11/Scrapyard | Discovered new exit (range 16) 44 | -11/Scrapyard | Entered Materials 259 | -10/Materials | Discovered new exit (range 13) 307 | -10/Materials | Build established: Mutant 398 | -10/Materials | Lost 3 parts (1u2w) 450 | -10/Materials | Discovered new exit (range 12) 471 | -10/Materials | Entered Mines 506 | -10/Mines | Met a Derelict bent on vengeance 543 | -10/Mines | Met a Derelict shopkeep closing up shop 593 | -10/Mines | Core integrity fell below 50% 650 | -10/Mines | Discovered new exit (range 8) 789 | -10/Mines | Discovered new exit (range 16) 917 | -10/Mines | Core integrity fell below 20% 925 | -10/Mines | Destroyed by G-34 Mercenary with Small Laser Last Messages --------------- 00789_ EXIT=FOUND 00814_ S-10 Pest destroyed. 00817_ Acquired 10 matter. 00820_ K-01 Serf collects debris. 00852_ K-01 Serf cleans the Seismic Survey Station. 00853_ S-10 Pest suffers critical hit (Burn). 00854_ K-01 Serf cleans the Seismic Survey Station. 00855_ S-10 Pest suffers critical hit (Burn). 00855_ S-10 Pest destroyed. 00857_ K-01 Serf cleans the Seismic Survey Station. 00867_ K-01 Serf cleans the Seismic Survey Station. 00895_ Sneak attack on R-06 Scavenger. 00895_ R-06 Scavenger destroyed. 00899_ Acquired Beamcaster. 00907_ Acquired 10 matter. 00908_ Dropped Wheel. Map ----- +----------------------------------------------------+ | ???????????????# #?????? ?###### ####???? | | ??????########## #?????? ?# *% #???? | | ??????# #?????? #?# """ """ #???? | | ###???# ##########?????? #?# """%""" #???? | | #???# #?????????????## #?# """= "" #???? | | # #???# #??????????#### #?# #???? | | # #???# #??????????# #?# """ #???? | | # #???# #??????##### ##=####%= < """ #???? | | ##### #?????## =[%* "" #???? | | #?????# ######## #???? | | #?????# ####??????# #???? | | ######?????# #?????????# #???? | | ##??????##### #?????????# #???? | | ##?????### #?????????##### ####???? | | ##??????# ##########????????# #??????? | | #???????# #??## ##???????# #??????? | | ????????# ###??# ##??????# #??????? | | ??????### #????# ###????# #??????? | | ?????## ! #????# ###### #??????? | | ?????# ##???# #??????? | | ?????# #???## ### #??????? | | #????## #????# #??### #########??????? | | ##????## ! #????# ?????# #??????????????? | | #?????## ###### #????#=#??????????????? | | #??????# ###??#=#??????????????? | | #??????## ########## #@#??????????????? | | #???????# ######### !!g#??????????????? | | ##???????# g! #?????????????? | | #??????### ######## #?????????????? | | ??????## ##????## ##?????????????? | | ??????# ######### #??????????????? | | ??????# #??### ??????????????? | | ??????## #????# #??????????????? | | ???????## ###### #????# ??????????????? | | ????????# ##??????#????### ??????????????? | | ????????# #??????????????? ??????????????? | | ######### #??????????????? ??????????????? | | #??????????????? ??????????????? | | ###########??????????????? ??????????????? | | ?????????????????????????? ??????????????? | | ?????????????????????????? ??????????????? | | ##???????????????????????? ??????????????? | | ##??????????????????????????????????????? | | #####??????????????????????????????????? | | ##?????????????????????????????????? | | #?????????????????????????????????? | | # #?????????????????????????????????? | | ## ##?????????????????????????????????? | | ?? ##??????????????????????????????????? | | ?? ##???????????????????????????????????? | +----------------------------------------------------+ Best States ------------- Heat Dissipation 25 Energy Generation 14 Energy Capacity 250 Matter Stores 300 Matter Capacity 300 Sight Range 16 Robot Scan Range 14 Terrain Scan Density 10 Core Shielding 20 Evasion (%) 42 Item Schematics ----------------- None Robot Schematics ------------------ None Fabricated ------------ Nothing Alien Tech Used ----------------- None Achievements -------------- None Challenges ------------ None Game ------ Seed CloakPotentialPlating Manual? 0 Play Time 00:12:43 Cumulative 61.0 hours Start 2024.03.24 @ 21:38:00 End 2024.03.24 @ 21:49:29 Sessions 1 Manual Loads 0 Difficulty Rogue Special Mode None Game No. 52 Rogue 50 Adventurer 0 Explorer 2 Win Type - Total 0 Types 0/0/0/0/0/0/0/0/0 Lore% 19 Gallery% 33 Achievement% 21 Wizard Run 0 Options --------- Layout 1 ASCII 0 Keyboard 0 Movement Mouse Keybinds 0 Fullscreen 2 Font 48/Tamsyn Map View 50x35 Zoom Use 0% Tactical HUD 1 Map Filters NONE Filters NONE Steam 1 RUN: 661713fc-62a9-43f8-9d0b-53cb3f2ea23b